fUSD/lending_fUSD_20240714
["ID","MTS","AMOUNT","RATE_DAILY","PERIOD"]
[332097494,1720960239646,-500.0,0.00013699,2]
[332097497,1720960239656,-500.0,0.00013699,2]
[332097499,1720960239665,-500.0,0.00013699,2]
[332097500,1720960239675,-500.0,0.00013699,2]
[332097502,1720960239684,-500.0,0.00013699,2]
[332097504,1720960239694,-500.0,0.00013699,2]
[332097506,1720960239704,-500.0,0.00013699,2]
[332097508,1720960239713,-500.0,0.00013699,2]
[332097510,1720960239723,-500.0,0.00013699,2]
[332097512,1720960239732,-500.0,0.00013699,2]
[332097514,1720960239742,-500.0,0.00013699,2]
[332097516,1720960239751,-500.0,0.00013699,2]
[332097518,1720960239761,-500.0,0.00013699,2]
[332097520,1720960239771,-500.0,0.00013699,2]
[332097522,1720960239780,-500.0,0.00013699,2]
[332097524,1720960239790,-500.0,0.00013699,2]
[332097526,1720960239801,-500.0,0.00013699,2]
[332097528,1720960239811,-455.53654658,0.00013699,2]
[332097531,1720960239827,-44.46345342,0.00013699,2]
[332097532,1720960239837,-500.0,0.00013699,2]
[332097534,1720960239847,-542.81,0.00013699,2]
[332097536,1720960239858,-500.0,0.00013699,2]
[332097538,1720960239866,-500.0,0.00013699,2]
[332097540,1720960239876,-500.0,0.00013699,2]
[332097542,1720960239886,-500.0,0.00013699,2]
[332097544,1720960239895,-500.0,0.00013699,2]
[332097546,1720960239905,-500.0,0.00013699,2]
[332097548,1720960239915,-500.0,0.00013699,2]
[332097550,1720960239924,-500.0,0.00013699,2]
[332097551,1720960239934,-500.0,0.00013699,2]
[332097554,1720960239944,-500.0,0.00013699,2]
[332097558,1720960239953,-500.0,0.00013699,2]
[332097559,1720960239963,-500.0,0.00013699,2]
[332097561,1720960239972,-500.0,0.00013699,2]
[332097563,1720960239982,-415.11418157,0.00013699,2]
[332097587,1720960240211,-84.88581843,0.00013699,2]
[332097589,1720960240221,-500.0,0.00013699,2]
[332097592,1720960240231,-500.0,0.00013699,2]
[332097593,1720960240240,-502.59,0.00013699,2]
[332097595,1720960240250,-500.0,0.00013699,2]
[332097597,1720960240259,-177.0132315,0.00013699,2]
[332097600,1720960240271,-344.6557179,0.00013699,2]
[332097602,1720960240280,-500.0,0.00013699,2]
[332097604,1720960240289,-47.54272809,0.00013699,2]
[332097606,1720960240301,-452.45727191,0.00013699,2]
[332097608,1720960240311,-500.0,0.00013699,2]
[332097610,1720960240320,-500.0,0.00013699,2]
[332097612,1720960240330,-500.0,0.00013699,2]
[332097614,1720960240340,-500.0,0.00013699,2]
[332097615,1720960240349,-500.0,0.00013699,2]
[332097616,1720960240359,-500.0,0.00013699,2]
[332097617,1720960240369,-500.0,0.00013699,2]
[332097618,1720960240379,-500.0,0.00013699,2]
[332097619,1720960240389,-500.0,0.00013699,2]
[332097633,1720960240535,-500.0,0.00013699,2]
[332097635,1720960240571,-576.0,0.00013699,2]
[332097638,1720960240581,-500.0,0.00013699,2]
[332097640,1720960240591,-500.0,0.00013699,2]
[332097642,1720960240602,-500.0,0.00013699,2]
[332097644,1720960240613,-500.0,0.00013699,2]
[332097646,1720960240623,-500.0,0.00013699,2]
[332097647,1720960240632,-151.0,0.00013699,2]
[332097649,1720960240642,-7038.85637821,0.000137,2]
[332097655,1720960240685,-3871.83400621,0.000137,2]
[332097657,1720960240695,-177.42557792,0.000137,2]
[332097659,1720960240703,-500.0,0.000137,5]
[332097661,1720960240713,-150.0,0.00013702,2]
[332097663,1720960240722,-150.0,0.00013703,2]
[332097664,1720960240732,-500.0,0.00013708,2]
[332097666,1720960240742,-300.0,0.00013709,2]
[332097668,1720960240751,-500.0,0.00013709,2]
[332097670,1720960240760,-512.76,0.00013709,2]
[332097672,1720960240770,-500.0,0.00013709,2]
[332097674,1720960240779,-500.0,0.00013709,2]
[332097677,1720960240789,-500.0,0.00013709,2]
[332097678,1720960240799,-500.0,0.00013709,2]
[332097680,1720960240808,-500.0,0.00013709,2]
[332097682,1720960240817,-500.0,0.00013709,2]
[332097684,1720960240827,-500.0,0.00013709,2]
[332097686,1720960240836,-500.0,0.00013709,2]
[332097688,1720960240846,-500.0,0.00013709,2]
[332097690,1720960240856,-500.0,0.00013709,2]
[332097692,1720960240865,-151.6308599,0.00013709,2]
[332097694,1720960240874,-500.0,0.00013709,2]
[332097696,1720960240885,-500.0,0.00013709,2]
[332097698,1720960240894,-500.0,0.00013709,2]
[332097700,1720960240904,-500.0,0.00013709,2]
[332097702,1720960240914,-500.0,0.00013709,2]
[332097704,1720960240924,-500.0,0.00013709,2]
[332097705,1720960240933,-500.0,0.00013709,2]
[332097707,1720960240943,-500.0,0.00013709,2]
[332097709,1720960240954,-500.0,0.00013709,2]
[332097712,1720960240966,-500.0,0.00013709,2]
[332097714,1720960240975,-500.0,0.00013709,2]
[332097716,1720960240985,-500.0,0.00013709,2]
[332097717,1720960240994,-500.0,0.00013709,2]
[332097720,1720960241005,-572.45,0.00013709,2]
[332097721,1720960241015,-500.0,0.00013709,2]
[332097723,1720960241025,-615.67,0.00013709,2]
[332097725,1720960241034,-500.0,0.00013709,2]
[332097727,1720960241044,-500.0,0.00013709,2]
[332097729,1720960241054,-500.0,0.00013709,2]
[332097731,1720960241063,-500.0,0.00013709,2]
[332097733,1720960241073,-500.0,0.00013709,2]
[332097735,1720960241085,-500.0,0.00013709,2]
[332097737,1720960241094,-500.0,0.00013709,2]
[332097739,1720960241106,-500.0,0.00013709,2]
[332097741,1720960241116,-500.0,0.00013709,2]
[332097743,1720960241125,-500.0,0.00013709,2]
[332097745,1720960241136,-500.0,0.00013709,2]
[332097747,1720960241147,-500.0,0.00013709,2]
[332097749,1720960241157,-500.0,0.00013709,2]
[332097751,1720960241166,-500.0,0.00013709,2]
[332097753,1720960241176,-500.0,0.00013709,2]
[332097755,1720960241185,-500.0,0.00013709,2]
[332097757,1720960241195,-500.0,0.00013709,2]
[332097759,1720960241204,-500.0,0.00013709,2]
[332097761,1720960241213,-253.01870179,0.00013709,2]
[332097762,1720960241222,-500.0,0.00013709,2]
[332097764,1720960241231,-500.0,0.00013709,2]
[332097766,1720960241241,-500.0,0.00013709,2]
[332097768,1720960241250,-10910.69038442,0.0001371,2]
[332097770,1720960241259,-150.0,0.0001371,2]
[332097773,1720960241269,-150.0,0.00013712,2]
[332097775,1720960241279,-150.0,0.00013714,2]
[332097777,1720960241289,-162.7662302,0.00013716,2]
[332097779,1720960241299,-500.0,0.00013719,2]
[332097781,1720960241310,-500.0,0.00013719,2]
[332097783,1720960241320,-500.0,0.00013719,2]
[332097785,1720960241329,-500.0,0.00013719,2]
[332097787,1720960241338,-500.0,0.00013719,2]
[332097789,1720960241347,-500.0,0.00013719,2]
[332097791,1720960241358,-500.0,0.00013719,2]
[332097793,1720960241368,-500.0,0.00013719,2]
[332097795,1720960241376,-500.0,0.00013719,2]
[332097797,1720960241386,-500.0,0.00013719,2]
[332097799,1720960241395,-500.0,0.00013719,2]
[332097801,1720960241404,-500.0,0.00013719,2]
[332097803,1720960241413,-500.0,0.00013719,2]
[332097805,1720960241422,-500.0,0.00013719,2]
[332097807,1720960241432,-500.0,0.00013719,2]
[332097809,1720960241441,-500.0,0.00013719,2]
[332097811,1720960241451,-500.0,0.00013719,2]
[332097813,1720960241459,-500.0,0.00013719,2]
[332097815,1720960241469,-289.70635056,0.00013719,2]
[332097817,1720960241478,-500.0,0.00013719,2]
[332097819,1720960241488,-500.0,0.00013719,2]
[332097821,1720960241498,-500.0,0.00013719,2]
[332097823,1720960241507,-500.0,0.00013719,2]
[332097825,1720960241516,-500.0,0.00013719,2]
[332097827,1720960241525,-500.0,0.00013719,2]
[332097829,1720960241535,-500.0,0.00013719,2]
[332097831,1720960241544,-500.0,0.00013719,2]
[332097833,1720960241554,-500.0,0.00013719,2]
[332097835,1720960241565,-614.68,0.00013719,2]
[332097837,1720960241574,-500.0,0.00013719,2]
[332097839,1720960241584,-500.0,0.00013719,2]
[332097841,1720960241593,-500.0,0.00013719,2]
[332097843,1720960241614,-500.0,0.00013719,2]
[332097845,1720960241624,-559.15,0.00013719,2]
[332097847,1720960241637,-500.0,0.00013719,2]
[332097849,1720960241647,-500.0,0.00013719,2]
[332097851,1720960241656,-500.0,0.00013719,2]
[332097853,1720960241665,-150.0,0.00013719,2]
[332097855,1720960241675,-500.0,0.00013719,2]
[332097857,1720960241684,-500.0,0.00013719,2]
[332097859,1720960241693,-500.0,0.00013719,2]
[332097861,1720960241702,-500.0,0.00013719,2]
[332097862,1720960241711,-610.13,0.00013719,2]
[332097864,1720960241720,-500.0,0.00013719,2]
[332097866,1720960241729,-500.0,0.00013719,2]
[332097868,1720960241739,-500.0,0.00013719,2]
[332097870,1720960241748,-563.69,0.00013719,2]
[332097872,1720960241757,-500.0,0.00013719,2]
[332097874,1720960241766,-151.0,0.00013719,2]
[332097876,1720960241775,-10910.69038442,0.0001372,2]
[332097878,1720960241784,-150.0,0.0001372,2]
[332097880,1720960241793,-10910.69038442,0.0001373,2]
[332097882,1720960241802,-354.82287898,0.00013733,2]
[332097884,1720960241811,-10910.69038442,0.0001374,2]
[332097887,1720960241822,-1500.0,0.00013741,2]
[332097889,1720960241831,-150.0,0.00013747,2]
[332097891,1720960241840,-150.0,0.00013747,2]
[332097892,1720960241849,-150.0,0.00013748,2]
[332097894,1720960241860,-10910.69038442,0.0001375,2]
[332097896,1720960241869,-151.0,0.0001375,2]
[332097898,1720960241879,-500.0,0.00013752,2]
[332097900,1720960241891,-500.0,0.00013752,2]
[332097903,1720960241901,-500.0,0.00013753,2]
[332097905,1720960241911,-210.2,0.00013753,2]
[332097907,1720960241920,-500.0,0.00013753,2]
[332097909,1720960241930,-500.0,0.00013753,2]
[332097911,1720960241940,-500.0,0.00013753,2]
[332097913,1720960241950,-500.0,0.00013753,2]
[332097915,1720960241959,-262.12,0.00013753,2]
[332097917,1720960241969,-500.0,0.00013753,2]
[332097919,1720960241980,-500.0,0.00013753,2]
[332097921,1720960241990,-500.0,0.00013753,2]
[332097923,1720960242000,-500.0,0.00013753,2]
[332097925,1720960242010,-500.0,0.00013753,2]
[332097927,1720960242021,-500.0,0.00013753,2]
[332097929,1720960242030,-500.0,0.00013753,2]
[332097931,1720960242040,-500.0,0.00013753,2]
[332097933,1720960242050,-500.0,0.00013753,2]
[332097935,1720960242059,-500.0,0.00013753,2]
[332097937,1720960242069,-500.0,0.00013753,2]
[332097940,1720960242078,-500.0,0.00013753,2]
[332097942,1720960242088,-500.0,0.00013753,2]
[332097944,1720960242097,-500.0,0.00013753,2]
[332097946,1720960242108,-500.0,0.00013753,2]
[332097948,1720960242117,-500.0,0.00013753,2]
[332097949,1720960242127,-500.0,0.00013753,2]
[332097951,1720960242136,-447.30872075,0.00013753,2]
[332097953,1720960242145,-500.0,0.00013753,2]
[332097955,1720960242155,-500.0,0.00013753,2]
[332097957,1720960242164,-500.0,0.00013753,2]
[332097959,1720960242173,-500.0,0.00013753,2]
[332097961,1720960242182,-500.0,0.00013753,2]
[332097963,1720960242192,-775.9,0.00013753,2]
[332097965,1720960242201,-500.0,0.00013753,2]
[332097967,1720960242211,-500.0,0.00013753,2]
[332097969,1720960242220,-500.0,0.00013753,2]
[332097971,1720960242230,-500.0,0.00013753,2]
[332097973,1720960242239,-500.0,0.00013753,2]
[332097975,1720960242248,-500.0,0.00013753,2]
[332097977,1720960242257,-500.0,0.00013753,2]
[332097979,1720960242266,-500.0,0.00013753,2]
[332097981,1720960242275,-500.0,0.00013753,2]
[332097983,1720960242285,-500.0,0.00013753,2]
[332097985,1720960242294,-500.0,0.00013753,2]
[332097987,1720960242303,-159.35,0.00013753,2]
[332097989,1720960242313,-500.0,0.00013753,2]
[332097991,1720960242323,-500.0,0.00013753,2]
[332097993,1720960242333,-500.0,0.00013753,2]
[332097995,1720960242342,-500.0,0.00013753,2]
[332097997,1720960242352,-500.0,0.00013753,2]
[332097999,1720960242363,-500.0,0.00013753,2]
[332098001,1720960242373,-500.0,0.00013753,2]
[332098003,1720960242383,-500.0,0.00013753,2]
[332098005,1720960242392,-500.0,0.00013753,2]
[332098007,1720960242402,-500.0,0.00013753,2]
[332098009,1720960242411,-276.23596087,0.00013753,2]
[332098012,1720960242421,-500.0,0.00013753,2]
[332098014,1720960242430,-500.0,0.00013753,2]
[332098016,1720960242439,-500.0,0.00013753,2]
[332098018,1720960242450,-500.0,0.00013753,2]
[332098020,1720960242459,-500.0,0.00013753,2]
[332098022,1720960242468,-500.0,0.00013753,2]
[332098024,1720960242478,-500.0,0.00013753,2]
[332098025,1720960242487,-500.0,0.00013753,2]
[332098027,1720960242496,-500.0,0.00013753,2]
[332098029,1720960242506,-500.0,0.00013753,2]
[332098031,1720960242516,-500.0,0.00013753,2]
[332098033,1720960242525,-500.0,0.00013753,2]
[332098035,1720960242534,-500.0,0.00013753,2]
[332098037,1720960242543,-500.0,0.00013753,2]
[332098039,1720960242555,-500.0,0.00013753,2]
[332098041,1720960242566,-500.0,0.00013753,2]
[332098043,1720960242576,-500.0,0.00013753,2]
[332098045,1720960242585,-500.0,0.00013753,2]
[332098047,1720960242595,-500.0,0.00013753,2]
[332098049,1720960242607,-500.0,0.00013753,2]
[332098050,1720960242619,-500.0,0.00013753,2]
[332098052,1720960242629,-500.0,0.00013753,2]
[332098054,1720960242639,-500.0,0.00013753,2]
[332098056,1720960242650,-500.0,0.00013753,2]
[332098058,1720960242660,-500.0,0.00013753,2]
[332098060,1720960242669,-522.67,0.00013753,2]
[332098062,1720960242679,-500.0,0.00013753,2]
[332098064,1720960242689,-500.0,0.00013753,2]
[332098066,1720960242699,-500.0,0.00013753,2]
[332098068,1720960242709,-500.0,0.00013753,2]
[332098070,1720960242721,-500.0,0.00013753,2]
[332098071,1720960242730,-500.0,0.00013753,2]
[332098072,1720960242741,-500.0,0.00013753,2]
[332098073,1720960242751,-500.0,0.00013753,2]
[332098074,1720960242761,-500.0,0.00013753,2]
[332098075,1720960242771,-500.0,0.00013753,2]
[332098076,1720960242782,-500.0,0.00013753,2]
[332098077,1720960242792,-500.0,0.00013753,2]
[332098078,1720960242802,-500.0,0.00013753,2]
[332098081,1720960242812,-866.72,0.00013753,2]
[332098082,1720960242822,-500.0,0.00013753,2]
[332098085,1720960242831,-500.0,0.00013753,2]
[332098089,1720960242840,-500.0,0.00013753,2]
[332098092,1720960242850,-500.0,0.00013753,2]
[332098095,1720960242861,-164.20997193,0.00013753,2]
[332098099,1720960242871,-1236.62,0.00013753,2]
[332098101,1720960242881,-500.0,0.00013753,2]
[332098104,1720960242890,-544.09,0.00013753,2]
[332098107,1720960242899,-500.0,0.00013753,2]
[332098111,1720960242908,-500.0,0.00013753,2]
[332098116,1720960242917,-556.45,0.00013753,2]
[332098119,1720960242927,-618.69,0.00013753,2]
[332098121,1720960242936,-500.0,0.00013753,2]
[332098123,1720960242945,-500.0,0.00013753,2]
[332098125,1720960242955,-500.0,0.00013753,2]
[332098127,1720960242965,-500.0,0.00013753,2]
[332098129,1720960242975,-500.0,0.00013753,2]
[332098131,1720960242985,-500.0,0.00013753,2]
[332098133,1720960242994,-500.0,0.00013753,2]
[332098135,1720960243004,-500.0,0.00013753,2]
[332098137,1720960243013,-1110.68,0.00013753,2]
[332098139,1720960243023,-553.89,0.00013753,2]
[332098141,1720960243033,-500.0,0.00013753,2]
[332098143,1720960243043,-500.0,0.00013753,2]
[332098145,1720960243052,-500.0,0.00013753,2]
[332098147,1720960243062,-500.0,0.00013753,2]
[332098149,1720960243071,-500.0,0.00013753,2]
[332098152,1720960243081,-500.0,0.00013753,2]
[332098154,1720960243091,-500.0,0.00013753,2]
[332098155,1720960243100,-500.0,0.00013753,2]
[332098157,1720960243110,-500.0,0.00013753,2]
[332098159,1720960243120,-500.0,0.00013753,2]
[332098161,1720960243129,-500.0,0.00013753,2]
[332098163,1720960243139,-500.0,0.00013753,2]
[332098165,1720960243149,-500.0,0.00013753,2]
[332098167,1720960243158,-500.0,0.00013753,2]
[332098169,1720960243168,-500.0,0.00013753,2]
[332098171,1720960243178,-500.0,0.00013753,2]
[332098173,1720960243188,-1817.79,0.00013753,2]
[332098175,1720960243198,-500.0,0.00013753,2]
[332098177,1720960243207,-500.0,0.00013753,2]
[332098179,1720960243217,-500.0,0.00013753,2]
[332098181,1720960243226,-500.0,0.00013753,2]
[332098183,1720960243235,-500.0,0.00013753,2]
[332098185,1720960243246,-500.0,0.00013753,2]
[332098187,1720960243255,-500.0,0.00013753,2]
[332098189,1720960243265,-500.0,0.00013753,2]
[332098191,1720960243274,-500.0,0.00013753,2]
[332098192,1720960243283,-500.0,0.00013753,2]
[332098194,1720960243292,-500.0,0.00013753,2]
[332098196,1720960243302,-500.0,0.00013753,2]
[332098198,1720960243311,-500.0,0.00013753,2]
[332098200,1720960243321,-500.0,0.00013753,2]
[332098202,1720960243330,-500.0,0.00013753,2]
[332098204,1720960243339,-500.0,0.00013753,2]
[332098206,1720960243349,-500.0,0.00013753,2]
[332098208,1720960243359,-500.0,0.00013753,2]
[332098210,1720960243368,-500.0,0.00013753,2]
[332098212,1720960243378,-500.0,0.00013753,2]
[332098214,1720960243388,-500.0,0.00013753,2]
[332098216,1720960243399,-500.0,0.00013753,2]
[332098218,1720960243409,-218.14,0.00013753,2]
[332098220,1720960243420,-1256.1,0.00013753,2]
[332098222,1720960243430,-500.0,0.00013753,2]
[332098224,1720960243440,-361.98167239,0.00013753,2]
[332098226,1720960243450,-500.0,0.00013753,2]
[332098228,1720960243459,-500.0,0.00013753,2]
[332098230,1720960243469,-500.0,0.00013753,2]
[332098232,1720960243479,-500.0,0.00013753,2]
[332098233,1720960243489,-500.0,0.00013753,2]
[332098235,1720960243498,-500.0,0.00013753,2]
[332098237,1720960243508,-500.0,0.00013753,2]
[332098239,1720960243518,-500.0,0.00013753,2]
[332098241,1720960243527,-1883.12,0.00013753,2]
[332098243,1720960243537,-500.0,0.00013753,2]
[332098245,1720960243547,-666.08,0.00013753,2]
[332098247,1720960243559,-500.0,0.00013753,2]
[332098249,1720960243569,-500.0,0.00013753,2]
[332098251,1720960243578,-500.0,0.00013753,2]
[332098253,1720960243587,-500.0,0.00013753,2]
[332098255,1720960243597,-500.0,0.00013753,2]
[332098257,1720960243607,-562.39891422,0.00013753,2]
[332098259,1720960243617,-500.0,0.00013753,2]
[332098261,1720960243627,-500.0,0.00013753,2]
[332098263,1720960243638,-836.59,0.00013753,2]
[332098264,1720960243647,-500.0,0.00013753,2]
[332098266,1720960243656,-500.0,0.00013753,2]
[332098269,1720960243665,-500.0,0.00013753,2]
[332098272,1720960243675,-500.0,0.00013753,2]
[332098275,1720960243684,-500.0,0.00013753,2]
[332098277,1720960243693,-500.0,0.00013753,2]
[332098279,1720960243702,-500.0,0.00013753,2]
[332098282,1720960243711,-500.0,0.00013753,2]
[332098284,1720960243721,-500.0,0.00013754,2]
[332098287,1720960243730,-500.0,0.00013754,2]
[332098290,1720960243740,-500.0,0.00013754,2]
[332098293,1720960243749,-500.0,0.00013754,2]
[332098296,1720960243759,-274.71,0.00013754,2]
[332098299,1720960243767,-500.0,0.00013754,2]
[332098301,1720960243776,-500.0,0.00013754,2]
[332098304,1720960243786,-500.0,0.00013754,2]
[332098306,1720960243795,-500.0,0.00013754,2]
[332098308,1720960243804,-500.0,0.00013754,2]
[332098310,1720960243814,-500.0,0.00013754,2]
[332098312,1720960243823,-500.0,0.00013754,2]
[332098314,1720960243832,-500.0,0.00013754,2]
[332098316,1720960243842,-500.0,0.00013754,2]
[332098318,1720960243851,-302.36,0.00013754,2]
[332098320,1720960243862,-500.0,0.00013754,2]
[332098322,1720960243871,-500.0,0.00013754,2]
[332098324,1720960243881,-500.0,0.00013754,2]
[332098326,1720960243890,-500.0,0.00013754,2]
[332098328,1720960243899,-500.0,0.00013754,2]
[332098330,1720960243908,-500.0,0.00013754,2]
[332098332,1720960243918,-500.0,0.00013754,2]
[332098334,1720960243927,-500.0,0.00013754,2]
[332098336,1720960243937,-500.0,0.00013754,2]
[332098338,1720960243946,-500.0,0.00013754,2]
[332098340,1720960243956,-342.63799433,0.00013754,2]
[332098342,1720960243966,-500.0,0.00013754,2]
[332098344,1720960243975,-500.0,0.00013754,2]
[332098346,1720960243984,-500.0,0.00013754,2]
[332098348,1720960243994,-502.59,0.00013754,2]
[332098350,1720960244003,-391.53109752,0.00013754,2]
[332098377,1720960244242,-108.46890248,0.00013754,2]
[332098379,1720960244251,-500.0,0.00013754,2]
[332098381,1720960244261,-500.0,0.00013754,2]
[332098383,1720960244270,-500.0,0.00013754,2]
[332098385,1720960244280,-500.0,0.00013754,2]
[332098398,1720960244461,-500.0,0.00013754,2]
[332098399,1720960244471,-500.0,0.00013754,2]
[332098400,1720960244481,-500.0,0.00013754,2]
[332098401,1720960244491,-500.0,0.00013754,2]
[332098402,1720960244501,-500.0,0.00013754,2]
[332098403,1720960244510,-500.0,0.00013754,2]
[332098404,1720960244520,-500.0,0.00013754,2]
[332098405,1720960244529,-500.0,0.00013754,2]
[332098406,1720960244539,-500.0,0.00013754,2]
[332098407,1720960244549,-358.16,0.00013754,2]
[332098408,1720960244563,-500.0,0.00013754,2]
[332098409,1720960244573,-500.0,0.00013754,2]
[332098410,1720960244583,-500.0,0.00013754,2]
[332098411,1720960244592,-1474.20941112,0.0001376,2]
[332098412,1720960244610,-1787.78223404,0.0001376,2]
[332098413,1720960244621,-5998.2,0.0001376,2]
[332098414,1720960244635,-1650.49873926,0.0001376,2]
[332098415,1720960244645,-150.0,0.00013761,2]
[332098416,1720960244655,-500.0,0.00013763,2]
[332098417,1720960244665,-500.0,0.00013764,2]
[332098418,1720960244674,-201.70126074,0.00013764,2]
[332098435,1720960244927,-102.10873926,0.00013764,2]
[332098437,1720960244937,-205.85126074,0.00013764,2]
[332098439,1720960244951,-353.44412154,0.00013764,2]
[332098442,1720960244964,-20.34461772,0.00013764,2]
[332098444,1720960244974,-160.57,0.00013764,2]
[332098446,1720960244983,-218.23,0.00013764,2]
[332098448,1720960244992,-8.536505,0.00013764,2]
[332098450,1720960245003,-389.5983873,0.00013764,2]
[332098598,1720960246306,-101.8651077,0.00013764,2]
[332098600,1720960246315,-500.0,0.00013764,2]
[332098602,1720960246324,-381.21182579,0.00013764,2]
[332098604,1720960246334,-500.88581246,0.00013764,2]
[332098606,1720960246343,-388.11323112,0.00013764,2]
[332098608,1720960246353,-500.0,0.00013764,2]
[332098610,1720960246363,-10910.69038442,0.0001377,2]
[332098612,1720960246373,-151.0,0.00013774,2]
[332098614,1720960246383,-10910.69038442,0.0001378,2]
[332098616,1720960246393,-150.0,0.00013782,2]
[332098618,1720960246402,-500.0,0.00013787,2]
[332098620,1720960246411,-500.0,0.00013796,2]
[332098622,1720960246421,-500.0,0.00013796,2]
[332098624,1720960246430,-151.0,0.00013797,2]
[332098626,1720960246440,-488.2986906,0.00013797,2]
[332098628,1720960246449,-104125.0606319,0.00013798,2]
[332098630,1720960246459,-7314.6835405,0.00013798,2]
[332098632,1720960246468,-7152.1638242,0.00013798,2]
[332098634,1720960246479,-300.02,0.00013799,2]
[332098636,1720960246488,-3017.44761312,0.00013799,2]
[332098638,1720960246498,-150.0,0.00013799,2]
[332098640,1720960246507,-432.82027039,0.00013799,2]
[332098642,1720960246516,-500.0,0.00013799,2]
[332098644,1720960246526,-515.87508984,0.00013799,2]
[332098646,1720960246536,-900.28136801,0.00013799,2]
[332098648,1720960246545,-738.0,0.00013799,2]
[332098650,1720960246555,-167316.26499695,0.000138,2]
[332098652,1720960246570,-28467.58910216,0.000138,2]
[332098654,1720960246582,-1955.7462556,0.000138,2]
[332098657,1720960246593,-475.67259041,0.000138,2]
[332098672,1720960246787,-297.27082205,0.000138,2]
[332098673,1720960246806,-4915.68527795,0.000138,2]
[332098674,1720960246817,-1059.16936474,0.000138,2]
[332098675,1720960246828,-315.3656145,0.000138,2]
[332098676,1720960246839,-13946.68130343,0.000138,2]
[332098679,1720960595138,281.09,0.00010608,2]
[332098680,1720960633502,1290.09905495,0.00010608,2]
[332098681,1720960634803,366.03385481,0.00010608,2]
[332098682,1720960670057,155.0,0.00010608,2]
[332098685,1720960741062,155.0,0.00010608,2]
[332098686,1720960847618,1050.0,0.00010608,2]
[332098687,1720960925253,600.0,0.00010608,2]
[332098690,1720961103367,163.36020277,0.00010608,2]
[332098691,1720961143186,394.73,0.00027,120]
[332098707,1720961270913,310.18,9.974e-05,2]
[332098711,1720961342277,162.54102814,0.00010997,2]
[332098728,1720961432169,-290.05974808,0.00011097,2]
[332098729,1720961432179,-39.0828552,0.00011097,2]
[332098730,1720961432283,-196.79586461,0.00011097,2]
[332098731,1720961432294,-9236.41322618,0.00011097,2]
[332098732,1720961432303,-165.69128862,0.00011098,2]
[332098733,1720961432313,-482.17106174,0.00011098,2]
[332098734,1720961432323,-553.58196334,0.00011098,2]
[332098735,1720961432332,-155.08614889,0.00011098,2]
[332098736,1720961432341,-406.97653481,0.00011098,2]
[332098737,1720961432351,-2376.51629851,0.00011098,2]
[332098738,1720961432360,-518.04242089,0.00011098,2]
[332098739,1720961432370,-597.80485648,0.00011098,2]
[332098740,1720961432379,-410.2183359,0.00011098,2]
[332098741,1720961432391,-625.89403241,0.00011098,2]